[Event "32nd NATO Chess Championship"]
[Site "Tartu, Estonia"]
[Date "2022.07.01"]
[Round "7.22"]
[White "Hernandez, Albert"]
[Black "Tikerpuu, Mati"]
[Result "1/2-1/2"]
[TimeControl "90 min + 30 sec increment from move one"]
[WhiteFideId "2075407"]
[BlackFideId "4505905"]
[WhiteElo "2012"]
[BlackElo "1819"]

1. d4 {[%clk 01:30:57]} {[%emt 00:00:02]} b6 {[%clk 01:30:46]} {[%emt
00:00:16]} 2. Nf3 {[%clk 01:31:15]} {[%emt 00:00:10]} e6 {[%clk 01:30:50]}
{[%emt 00:00:27]} 3. g3 {[%clk 01:31:38]} {[%emt 00:00:06]} Bb7 {[%clk
01:31:07]} {[%emt 00:00:14]} 4. Bg2 {[%clk 01:32:02]} {[%emt 00:00:05]} Nf6
{[%clk 01:30:59]} {[%emt 00:00:39]} 5. O-O {[%clk 01:32:22]} {[%emt 00:00:10]}
Be7 {[%clk 01:30:56]} {[%emt 00:00:33]} 6. c4 {[%clk 01:32:34]} {[%emt
00:00:18]} O-O {[%clk 01:30:39]} {[%emt 00:00:47]} 7. Nc3 {[%clk 01:32:59]}
{[%emt 00:00:06]} d5 {[%clk 01:30:45]} {[%emt 00:00:23]} 8. Ne5 {[%clk
01:33:08]} {[%emt 00:00:20]} c5 {[%clk 01:25:47]} {[%emt 00:05:29]} 9. dxc5
{[%clk 01:32:02]} {[%emt 00:01:36]} Bxc5 {[%clk 01:25:28]} {[%emt 00:00:49]} 10.
Bg5 {[%clk 01:31:53]} {[%emt 00:00:39]} Be7 {[%clk 01:24:29]} {[%emt 00:01:29]}
11. e3 {[%clk 01:31:11]} {[%emt 00:01:11]} h6 {[%clk 01:20:12]} {[%emt
00:04:48]} 12. Bxf6 {[%clk 01:31:13]} {[%emt 00:00:27]} Bxf6 {[%clk 01:20:35]}
{[%emt 00:00:08]} 13. Ng4 {[%clk 01:31:36]} {[%emt 00:00:06]} Bxc3 {[%clk
01:18:37]} {[%emt 00:02:30]} 14. bxc3 {[%clk 01:31:48]} {[%emt 00:00:17]} Ba6
{[%clk 01:18:06]} {[%emt 00:01:01]} 15. Ne5 {[%clk 01:30:37]} {[%emt 00:01:41]}
Nd7 {[%clk 01:11:17]} {[%emt 00:07:20]} 16. Qa4 {[%clk 01:28:01]} {[%emt
00:03:05]} Nxe5 {[%clk 01:08:47]} {[%emt 00:03:00]} 17. Qxa6 {[%clk 01:28:23]}
{[%emt 00:00:07]} Nxc4 {[%clk 01:09:06]} {[%emt 00:00:12]} 18. e4 {[%clk
01:28:46]} {[%emt 00:00:07]} Qc8 {[%clk 01:00:30]} {[%emt 00:09:05]} 19. Qxc8
{[%clk 01:22:49]} {[%emt 00:06:27]} Raxc8 {[%clk 01:00:34]} {[%emt 00:00:27]}
20. exd5 {[%clk 01:23:13]} {[%emt 00:00:06]} exd5 {[%clk 00:59:36]} {[%emt
00:01:28]} 21. Bxd5 {[%clk 01:23:36]} {[%emt 00:00:07]} Rc5 {[%clk 00:57:40]}
{[%emt 00:02:26]} 22. Rfd1 {[%clk 01:23:50]} {[%emt 00:00:15]} Rfc8 {[%clk
00:56:37]} {[%emt 00:01:35]} 23. Rd4 {[%clk 01:20:29]} {[%emt 00:03:49]} Ne5
{[%clk 00:47:33]} {[%emt 00:09:34]} 24. Kg2 {[%clk 01:17:18]} {[%emt 00:03:42]}
Rxc3 {[%clk 00:46:05]} {[%emt 00:01:59]} 25. Re1 {[%clk 01:17:27]} {[%emt
00:00:19]} Ng6 {[%clk 00:37:35]} {[%emt 00:09:00]} 26. Rde4 {[%clk 01:16:42]}
{[%emt 00:01:16]} Kf8 {[%clk 00:35:33]} {[%emt 00:02:32]} 27. h4 {[%clk
01:15:02]} {[%emt 00:02:10]} f6 {[%clk 00:32:19]} {[%emt 00:03:44]} 28. f4
{[%clk 01:11:27]} {[%emt 00:04:04]} Rc2+ {[%clk 00:28:59]} {[%emt 00:03:50]} 29.
Kh3 {[%clk 01:11:37]} {[%emt 00:00:20]} R2c7 {[%clk 00:29:16]} {[%emt
00:00:14]} 30. h5 {[%clk 01:08:06]} {[%emt 00:04:00]} Ne7 {[%clk 00:28:39]}
{[%emt 00:01:08]} 31. Be6 {[%clk 01:08:20]} {[%emt 00:00:16]} Rd8 {[%clk
00:28:24]} {[%emt 00:00:45]} 32. R1e2 {[%clk 01:05:23]} {[%emt 00:03:27]} Rc5
{[%clk 00:25:30]} {[%emt 00:03:23]} 33. g4 {[%clk 00:58:06]} {[%emt 00:07:47]}
Rc3+ {[%clk 00:21:11]} {[%emt 00:04:50]} 34. Kg2 {[%clk 00:56:30]} {[%emt
00:02:05]} Rc7 {[%clk 00:19:49]} {[%emt 00:01:53]} 1/2-1/2

[Event "32nd NATO Chess Championship"]
[Site "Tartu, Estonia"]
[Date "2022.07.01"]
[Round "7.23"]
[White "Van Den Heuvel, Tonnie"]
[Black "Pirs, Matjaz"]
[Result "0-1"]
[TimeControl "90 min + 30 sec increment from move one"]
[WhiteFideId "1012924"]
[BlackFideId "14606941"]
[WhiteElo "1799"]
[BlackElo "1965"]

1. b3 {[%clk 01:30:57]} {[%emt 00:00:03]} Nf6 {[%clk 01:30:38]} {[%emt
00:00:22]} 2. Bb2 {[%clk 01:31:17]} {[%emt 00:00:09]} d5 {[%clk 01:30:50]}
{[%emt 00:00:19]} 3. e3 {[%clk 01:31:32]} {[%emt 00:00:14]} Bf5 {[%clk
01:30:04]} {[%emt 00:01:16]} 4. Nf3 {[%clk 01:31:25]} {[%emt 00:00:38]} e6
{[%clk 01:29:12]} {[%emt 00:01:22]} 5. c4 {[%clk 01:27:18]} {[%emt 00:04:36]}
Nbd7 {[%clk 01:29:01]} {[%emt 00:00:41]} 6. Nc3 {[%clk 01:26:17]} {[%emt
00:01:31]} c6 {[%clk 01:29:10]} {[%emt 00:00:22]} 7. Be2 {[%clk 01:25:42]}
{[%emt 00:01:05]} Bd6 {[%clk 01:29:05]} {[%emt 00:00:35]} 8. d4 {[%clk
01:25:24]} {[%emt 00:00:47]} Ne4 {[%clk 01:24:25]} {[%emt 00:05:10]} 9. Nxe4
{[%clk 01:23:54]} {[%emt 00:02:00]} dxe4 {[%clk 01:23:54]} {[%emt 00:01:02]} 10.
Nd2 {[%clk 01:22:31]} {[%emt 00:01:53]} O-O {[%clk 00:57:57]} {[%emt 00:26:26]}
11. g4 {[%clk 01:20:30]} {[%emt 00:02:31]} Bg6 {[%clk 00:58:05]} {[%emt
00:00:22]} 12. h4 {[%clk 01:20:49]} {[%emt 00:00:11]} f5 {[%clk 00:57:16]}
{[%emt 00:01:20]} 13. gxf5 {[%clk 01:19:27]} {[%emt 00:01:51]} exf5 {[%clk
00:56:33]} {[%emt 00:01:13]} 14. h5 {[%clk 01:18:54]} {[%emt 00:01:03]} Bf7
{[%clk 00:52:48]} {[%emt 00:04:15]} 15. Qc2 {[%clk 01:19:18]} {[%emt 00:00:06]}
Qe7 {[%clk 00:52:04]} {[%emt 00:01:15]} 16. c5 {[%clk 01:19:23]} {[%emt
00:00:25]} Bc7 {[%clk 00:52:19]} {[%emt 00:00:14]} 17. O-O-O {[%clk 01:19:11]}
{[%emt 00:00:43]} Nf6 {[%clk 00:52:21]} {[%emt 00:00:27]} 18. Rdg1 {[%clk
01:18:53]} {[%emt 00:00:48]} Nd5 {[%clk 00:52:35]} {[%emt 00:00:15]} 19. Rg2
{[%clk 01:17:24]} {[%emt 00:02:00]} Be6 {[%clk 00:51:45]} {[%emt 00:01:20]} 20.
Rhg1 {[%clk 01:17:21]} {[%emt 00:00:32]} Rf7 {[%clk 00:52:07]} {[%emt
00:00:09]} 21. Bc4 {[%clk 01:15:56]} {[%emt 00:01:55]} Rd8 {[%clk 00:30:54]}
{[%emt 00:21:44]} 22. Qd1 {[%clk 01:14:37]} {[%emt 00:01:49]} b6 {[%clk
00:23:29]} {[%emt 00:07:55]} 23. h6 {[%clk 01:08:05]} {[%emt 00:07:02]} g6
{[%clk 00:21:06]} {[%emt 00:02:53]} 24. Bxd5 {[%clk 01:04:46]} {[%emt
00:03:48]} Bxd5 {[%clk 00:20:45]} {[%emt 00:00:51]} 25. Nc4 {[%clk 01:04:17]}
{[%emt 00:01:00]} Bxc4 {[%clk 00:19:31]} {[%emt 00:01:44]} 26. bxc4 {[%clk
01:04:38]} {[%emt 00:00:08]} bxc5 {[%clk 00:16:34]} {[%emt 00:03:27]} 27. Qh5
{[%clk 01:03:42]} {[%emt 00:01:26]} Kf8 {[%clk 00:12:56]} {[%emt 00:04:09]} 28.
Ba3 {[%clk 00:43:08]} {[%emt 00:21:04]} Bd6 {[%clk 00:07:47]} {[%emt 00:05:39]}
29. dxc5 {[%clk 00:40:55]} {[%emt 00:02:42]} Bxc5 {[%clk 00:07:54]} {[%emt
00:00:24]} 30. Bb2 {[%clk 00:41:04]} {[%emt 00:00:20]} Ba3 {[%clk 00:08:12]}
{[%emt 00:00:11]} 31. Qe2 {[%clk 00:40:39]} {[%emt 00:00:56]} Rb8 {[%clk
00:08:15]} {[%emt 00:00:27]} 0-1

[Event "32nd NATO Chess Championship"]
[Site "Tartu, Estonia"]
[Date "2022.07.01"]
[Round "7.24"]
[White "Randall, Gordon"]
[Black "Ntalampiras, Spyros"]
[Result "1-0"]
[TimeControl "90 min + 30 sec increment from move one"]
[WhiteFideId "2056518"]
[BlackFideId "4227778"]
[WhiteElo "1954"]
[BlackElo "1815"]

1. d4 {[%clk 01:30:57]} {[%emt 00:00:03]} Nf6 {[%clk 01:30:55]} {[%emt
00:00:04]} 2. c4 {[%clk 01:31:20]} {[%emt 00:00:06]} g6 {[%clk 01:31:22]}
{[%emt 00:00:04]} 3. Nc3 {[%clk 01:31:09]} {[%emt 00:00:42]} Bg7 {[%clk
01:31:32]} {[%emt 00:00:21]} 4. e4 {[%clk 01:31:18]} {[%emt 00:00:20]} d6
{[%clk 01:31:56]} {[%emt 00:00:05]} 5. Nge2 {[%clk 01:31:35]} {[%emt 00:00:13]}
O-O {[%clk 01:31:50]} {[%emt 00:00:36]} 6. Ng3 {[%clk 01:31:49]} {[%emt
00:00:16]} e5 {[%clk 01:31:29]} {[%emt 00:00:51]} 7. d5 {[%clk 01:31:54]}
{[%emt 00:00:26]} a5 {[%clk 01:30:49]} {[%emt 00:01:11]} 8. Be2 {[%clk
01:31:08]} {[%emt 00:01:14]} Na6 {[%clk 01:30:14]} {[%emt 00:01:06]} 9. h4
{[%clk 01:28:19]} {[%emt 00:03:18]} h5 {[%clk 01:29:21]} {[%emt 00:01:23]} 10.
Bg5 {[%clk 01:27:59]} {[%emt 00:00:51]} Qe8 {[%clk 01:25:39]} {[%emt 00:04:12]}
11. Qd2 {[%clk 01:18:25]} {[%emt 00:10:04]} Nc5 {[%clk 01:20:33]} {[%emt
00:05:35]} 12. O-O-O {[%clk 01:13:12]} {[%emt 00:05:43]} Ng4 {[%clk 01:17:43]}
{[%emt 00:03:20]} 13. Rdf1 {[%clk 01:09:04]} {[%emt 00:04:38]} Kh7 {[%clk
01:02:11]} {[%emt 00:16:02]} 14. f3 {[%clk 01:06:21]} {[%emt 00:03:14]} Nh6
{[%clk 01:01:15]} {[%emt 00:01:26]} 15. Nb5 {[%clk 01:03:04]} {[%emt 00:03:47]}
Qd7 {[%clk 01:00:04]} {[%emt 00:01:41]} 16. Bd1 {[%clk 00:58:04]} {[%emt
00:05:31]} c6 {[%clk 00:56:14]} {[%emt 00:04:19]} 17. Nc3 {[%clk 00:51:13]}
{[%emt 00:07:21]} f6 {[%clk 00:49:40]} {[%emt 00:07:05]} 18. Be3 {[%clk
00:50:32]} {[%emt 00:01:11]} b6 {[%clk 00:47:00]} {[%emt 00:03:10]} 19. Kb1
{[%clk 00:40:39]} {[%emt 00:10:23]} Ba6 {[%clk 00:43:36]} {[%emt 00:03:53]} 20.
b3 {[%clk 00:35:58]} {[%emt 00:05:12]} Rab8 {[%clk 00:37:29]} {[%emt 00:06:36]}
21. f4 {[%clk 00:32:04]} {[%emt 00:04:24]} exf4 {[%clk 00:34:02]} {[%emt
00:03:58]} 22. Bxf4 {[%clk 00:31:55]} {[%emt 00:00:39]} Nf7 {[%clk 00:34:29]}
{[%emt 00:00:03]} 23. Qe2 {[%clk 00:28:57]} {[%emt 00:03:28]} Rfe8 {[%clk
00:29:40]} {[%emt 00:05:18]} 24. Bc2 {[%clk 00:26:26]} {[%emt 00:03:01]} b5
{[%clk 00:26:00]} {[%emt 00:04:10]} 25. e5 {[%clk 00:21:03]} {[%emt 00:05:53]}
Nxe5 {[%clk 00:16:36]} {[%emt 00:09:55]} 26. Bxg6+ {[%clk 00:18:52]} {[%emt
00:02:41]} Nxg6 {[%clk 00:12:55]} {[%emt 00:04:11]} 27. Qxh5+ {[%clk 00:19:13]}
{[%emt 00:00:08]} Kg8 {[%clk 00:13:22]} {[%emt 00:00:03]} 28. Qxg6 {[%clk
00:19:14]} {[%emt 00:00:29]} Qf7 {[%clk 00:12:03]} {[%emt 00:01:49]} 29. Qxf7+
{[%clk 00:19:18]} {[%emt 00:00:26]} Kxf7 {[%clk 00:12:29]} {[%emt 00:00:04]} 30.
Bxd6 {[%clk 00:19:40]} {[%emt 00:00:07]} Nxb3 {[%clk 00:09:44]} {[%emt
00:03:16]} 31. axb3 {[%clk 00:19:16]} {[%emt 00:00:55]} Rbd8 {[%clk 00:09:00]}
{[%emt 00:01:13]} 32. Nf5 {[%clk 00:17:26]} {[%emt 00:02:20]} bxc4 {[%clk
00:08:04]} {[%emt 00:01:26]} 33. Bc7 {[%clk 00:16:58]} {[%emt 00:00:58]} Rd7
{[%clk 00:07:57]} {[%emt 00:00:38]} 34. Nd6+ {[%clk 00:16:56]} {[%emt
00:00:31]} Rxd6 {[%clk 00:06:25]} {[%emt 00:02:02]} 35. Bxd6 {[%clk 00:17:25]}
cxd5 {[%clk 00:06:28]} {[%emt 00:00:27]} 36. Rd1 {[%clk 00:16:25]} {[%emt
00:01:30]} Re3 {[%clk 00:05:45]} {[%emt 00:01:14]} 37. Nxd5 {[%clk 00:14:30]}
{[%emt 00:02:25]} Rxb3+ {[%clk 00:04:56]} {[%emt 00:01:19]} 38. Kc2 {[%clk
00:14:42]} {[%emt 00:00:17]} f5 {[%clk 00:04:45]} {[%emt 00:00:41]} 39. Rhf1
{[%clk 00:14:43]} {[%emt 00:00:28]} Rb2+ {[%clk 00:03:30]} {[%emt 00:01:46]} 40.
Kc1 {[%clk 00:14:53]} {[%emt 00:00:20]} c3 {[%clk 00:02:34]} {[%emt 00:01:27]}
41. Rg1 {[%clk 00:10:48]} {[%emt 00:04:34]} Be2 {[%clk 00:01:12]} {[%emt
00:01:52]} 42. Nf4 {[%clk 00:08:54]} {[%emt 00:02:23]} Bxd1 {[%clk 00:01:05]}
{[%emt 00:00:38]} 43. Rxd1 {[%clk 00:09:04]} {[%emt 00:00:19]} c2 {[%clk
00:01:13]} {[%emt 00:00:23]} 44. Rd5 {[%clk 00:08:33]} {[%emt 00:01:02]} a4
{[%clk 00:00:34]} {[%emt 00:01:09]} 45. Rxf5+ {[%clk 00:08:08]} {[%emt
00:00:54]} Ke8 {[%clk 00:01:02]} {[%emt 00:00:03]} 46. Be5 {[%clk 00:07:37]}
{[%emt 00:01:00]} Rb5 {[%clk 00:00:50]} {[%emt 00:00:42]} 47. Nd3 {[%clk
00:07:23]} {[%emt 00:00:44]} a3 {[%clk 00:00:39]} {[%emt 00:00:42]} 48. Kxc2
{[%clk 00:07:21]} {[%emt 00:00:31]} a2 {[%clk 00:00:49]} {[%emt 00:00:20]} 49.
Bxg7 {[%clk 00:06:55]} {[%emt 00:00:55]} Rxf5 {[%clk 00:00:59]} {[%emt
00:00:21]} 50. g4 {[%clk 00:06:16]} {[%emt 00:01:08]} Ra5 {[%clk 00:00:57]}
{[%emt 00:00:33]} 51. Ba1 {[%clk 00:06:29]} {[%emt 00:00:17]} Ra4 {[%clk
00:01:09]} {[%emt 00:00:19]} 52. Ne5 {[%clk 00:06:27]} {[%emt 00:00:31]} Re4
{[%clk 00:00:47]} {[%emt 00:00:52]} 53. Kb3 {[%clk 00:06:34]} {[%emt 00:00:22]}
Re2 {[%clk 00:00:47]} {[%emt 00:00:30]} 54. Bb2 {[%clk 00:06:30]} {[%emt
00:00:34]} Kf8 {[%clk 00:00:33]} {[%emt 00:00:45]} 55. Kxa2 {[%clk 00:06:48]}
{[%emt 00:00:12]} Kg8 {[%clk 00:00:50]} {[%emt 00:00:14]} 56. Kb3 {[%clk
00:07:07]} {[%emt 00:00:11]} Re4 {[%clk 00:00:53]} {[%emt 00:00:26]} 57. Bc3
{[%clk 00:06:54]} {[%emt 00:00:44]} Kh7 {[%clk 00:00:59]} {[%emt 00:00:24]} 58.
Kc2 {[%clk 00:07:06]} {[%emt 00:00:17]} Re2+ {[%clk 00:00:47]} {[%emt
00:00:42]} 59. Kd3 {[%clk 00:07:23]} {[%emt 00:00:13]} Rh2 {[%clk 00:01:13]}
{[%emt 00:00:04]} 60. Nf3 {[%clk 00:07:16]} {[%emt 00:00:36]} Rg2 {[%clk
00:01:02]} {[%emt 00:00:31]} 61. Ne5 {[%clk 00:07:11]} {[%emt 00:00:46]} Rh2
{[%clk 00:01:29]} {[%emt 00:00:03]} 62. Be1 {[%clk 00:07:23]} {[%emt 00:00:18]}
Rh1 {[%clk 00:01:36]} {[%emt 00:00:24]} 63. Bf2 {[%clk 00:07:40]} {[%emt
00:00:11]} Rh2 {[%clk 00:01:48]} {[%emt 00:00:18]} 64. Ke3 {[%clk 00:08:00]}
{[%emt 00:00:10]} Rh3+ {[%clk 00:01:30]} {[%emt 00:00:49]} 65. Kf4 {[%clk
00:07:57]} {[%emt 00:00:32]} Rh2 {[%clk 00:00:58]} {[%emt 00:01:02]} 66. Kg3
{[%clk 00:08:04]} {[%emt 00:00:23]} Rh1 {[%clk 00:01:23]} {[%emt 00:00:06]} 67.
h5 {[%clk 00:07:55]} {[%emt 00:00:39]} Rb1 {[%clk 00:01:36]} {[%emt 00:00:16]}
68. Kh4 {[%clk 00:08:04]} {[%emt 00:00:21]} Rb5 {[%clk 00:01:39]} {[%emt
00:00:28]} 69. Bg3 {[%clk 00:08:22]} {[%emt 00:00:11]} Rb3 {[%clk 00:01:35]}
{[%emt 00:00:35]} 70. Bf4 {[%clk 00:08:37]} {[%emt 00:00:14]} Rb4 {[%clk
00:01:43]} {[%emt 00:00:21]} 71. Kg5 {[%clk 00:09:00]} {[%emt 00:00:09]} Rb5
{[%clk 00:02:01]} {[%emt 00:00:10]} 72. Kf5 {[%clk 00:09:17]} {[%emt 00:00:15]}
Rb1 {[%clk 00:01:24]} {[%emt 00:01:08]} 73. g5 {[%clk 00:09:23]} {[%emt
00:00:23]} Rh1 {[%clk 00:01:31]} {[%emt 00:00:22]} 74. h6 {[%clk 00:09:21]}
{[%emt 00:00:33]} Rh5 {[%clk 00:00:39]} {[%emt 00:01:23]} 75. Ng4 {[%clk
00:09:19]} {[%emt 00:00:31]} Rh4 {[%clk 00:00:32]} {[%emt 00:00:37]} 76. Nf6+
{[%clk 00:09:28]} {[%emt 00:00:20]} Kh8 {[%clk 00:00:57]} {[%emt 00:00:05]} 77.
Ng4 {[%clk 00:09:39]} {[%emt 00:00:19]} Rh1 {[%clk 00:00:55]} {[%emt 00:00:33]}
78. g6 {[%clk 00:09:40]} {[%emt 00:00:29]} Rh5+ {[%clk 00:00:38]} {[%emt
00:00:47]} 79. Bg5 {[%clk 00:09:45]} {[%emt 00:00:24]} Rh1 {[%clk 00:00:35]}
{[%emt 00:00:33]} 80. g7+ {[%clk 00:10:01]} {[%emt 00:00:15]} 1-0

[Event "32nd NATO Chess Championship"]
[Site "Tartu, Estonia"]
[Date "2022.07.01"]
[Round "7.27"]
[White "Choina, Michal"]
[Black "Ivsek, Cveto"]
[Result "1-0"]
[TimeControl "90 min + 30 sec increment from move one"]
[WhiteFideId "1166565"]
[BlackFideId "14608405"]
[WhiteElo "1927"]
[BlackElo "1766"]

1. e4 {[%clk 01:30:57]} {[%emt 00:00:02]} c5 {[%clk 01:30:46]} {[%emt
00:00:14]} 2. Nf3 {[%clk 01:31:12]} {[%emt 00:00:15]} Nc6 {[%clk 01:31:01]}
{[%emt 00:00:16]} 3. d4 {[%clk 01:31:25]} {[%emt 00:00:16]} cxd4 {[%clk
01:31:06]} {[%emt 00:00:26]} 4. Nxd4 {[%clk 01:31:48]} {[%emt 00:00:07]} a6
{[%clk 01:23:07]} {[%emt 00:08:29]} 5. c4 {[%clk 01:29:25]} {[%emt 00:02:53]}
Qb6 {[%clk 01:19:47]} {[%emt 00:03:49]} 6. Nb3 {[%clk 01:29:13]} {[%emt
00:00:43]} e6 {[%clk 01:17:57]} {[%emt 00:02:21]} 7. Be3 {[%clk 01:28:29]}
{[%emt 00:01:13]} Qc7 {[%clk 01:15:05]} {[%emt 00:03:21]} 8. a3 {[%clk
01:28:04]} {[%emt 00:00:57]} Nf6 {[%clk 01:14:12]} {[%emt 00:01:22]} 9. Nc3
{[%clk 01:26:02]} {[%emt 00:02:32]} Be7 {[%clk 01:11:07]} {[%emt 00:03:36]} 10.
Be2 {[%clk 01:24:23]} {[%emt 00:02:08]} O-O {[%clk 01:11:20]} {[%emt 00:00:17]}
11. f4 {[%clk 01:22:50]} {[%emt 00:02:03]} e5 {[%clk 01:07:52]} {[%emt
00:03:58]} 12. f5 {[%clk 01:22:37]} {[%emt 00:00:43]} Na5 {[%clk 01:07:30]}
{[%emt 00:00:52]} 13. Nxa5 {[%clk 01:21:52]} {[%emt 00:01:15]} Qxa5 {[%clk
01:07:54]} {[%emt 00:00:06]} 14. b4 {[%clk 01:20:45]} {[%emt 00:01:37]} Qc7
{[%clk 01:07:50]} {[%emt 00:00:32]} 15. g4 {[%clk 01:16:40]} {[%emt 00:04:37]}
h6 {[%clk 01:03:46]} {[%emt 00:04:34]} 16. h4 {[%clk 01:12:42]} {[%emt
00:04:27]} Nh7 {[%clk 01:03:58]} {[%emt 00:00:17]} 17. Nd5 {[%clk 01:11:13]}
{[%emt 00:02:00]} Qd8 {[%clk 01:00:43]} {[%emt 00:03:46]} 18. Nxe7+ {[%clk
01:11:18]} {[%emt 00:00:25]} Qxe7 {[%clk 01:00:52]} {[%emt 00:00:21]} 19. Bc5
{[%clk 01:11:40]} {[%emt 00:00:08]} Qf6 {[%clk 00:57:02]} {[%emt 00:04:20]} 20.
Bxf8 {[%clk 01:11:52]} {[%emt 00:00:17]} Nxf8 {[%clk 00:55:29]} {[%emt
00:02:03]} 21. Qd5 {[%clk 01:11:28]} {[%emt 00:00:54]} Qe7 {[%clk 00:52:38]}
{[%emt 00:03:19]} 22. c5 {[%clk 01:09:10]} {[%emt 00:02:49]} Nh7 {[%clk
00:51:53]} {[%emt 00:01:15]} 23. Rd1 {[%clk 01:02:07]} {[%emt 00:07:33]} Nf6
{[%clk 00:50:31]} {[%emt 00:01:53]} 24. Qd3 {[%clk 01:02:14]} {[%emt 00:00:23]}
Ne8 {[%clk 00:48:12]} {[%emt 00:02:50]} 25. Qe3 {[%clk 00:58:18]} {[%emt
00:04:25]} f6 {[%clk 00:46:52]} {[%emt 00:01:50]} 26. a4 {[%clk 00:52:06]}
{[%emt 00:06:42]} d6 {[%clk 00:45:59]} {[%emt 00:01:23]} 27. cxd6 {[%clk
00:49:52]} {[%emt 00:02:44]} Nxd6 {[%clk 00:43:49]} {[%emt 00:02:40]} 28. Qc5
{[%clk 00:48:49]} {[%emt 00:01:32]} 1-0

[Event "32nd NATO Chess Championship"]
[Site "Tartu, Estonia"]
[Date "2022.07.01"]
[Round "7.29"]
[White "Simard, Francois"]
[Black "Giedraitis, Mingaudas"]
[Result "0-1"]
[TimeControl "90 min + 30 sec increment from move one"]
[WhiteFideId "2621681"]
[BlackFideId "12808806"]
[WhiteElo "1757"]
[BlackElo "1846"]

1. d4 {[%clk 01:29:58]} {[%emt 00:01:01]} d5 {[%clk 01:30:55]} {[%emt
00:00:06]} 2. c4 {[%clk 01:30:18]} {[%emt 00:00:11]} c6 {[%clk 01:31:20]}
{[%emt 00:00:05]} 3. cxd5 {[%clk 01:30:44]} {[%emt 00:00:04]} cxd5 {[%clk
01:31:49]} {[%emt 00:00:01]} 4. Nc3 {[%clk 01:31:05]} {[%emt 00:00:09]} Nc6
{[%clk 01:30:35]} {[%emt 00:01:44]} 5. Nf3 {[%clk 01:30:15]} {[%emt 00:01:20]}
Nf6 {[%clk 01:30:40]} {[%emt 00:00:24]} 6. Bg5 {[%clk 01:29:52]} {[%emt
00:00:53]} e6 {[%clk 01:28:27]} {[%emt 00:02:44]} 7. e3 {[%clk 01:29:44]}
{[%emt 00:00:39]} Be7 {[%clk 01:28:44]} {[%emt 00:00:12]} 8. Rc1 {[%clk
01:29:55]} {[%emt 00:00:18]} O-O {[%clk 01:28:19]} {[%emt 00:00:57]} 9. Bd3
{[%clk 01:30:16]} {[%emt 00:00:08]} Nh5 {[%clk 01:22:27]} {[%emt 00:06:22]} 10.
Bxe7 {[%clk 01:27:29]} {[%emt 00:03:17]} Qxe7 {[%clk 01:17:49]} {[%emt
00:05:08]} 11. O-O {[%clk 01:27:28]} {[%emt 00:00:31]} g6 {[%clk 01:16:02]}
{[%emt 00:02:17]} 12. a3 {[%clk 01:24:07]} {[%emt 00:03:52]} Qd6 {[%clk
01:09:59]} {[%emt 00:06:32]} 13. Qc2 {[%clk 01:08:37]} {[%emt 00:16:00]} Rd8
{[%clk 01:03:40]} {[%emt 00:06:49]} 14. Na4 {[%clk 01:08:13]} {[%emt 00:00:53]}
Nf6 {[%clk 00:50:13]} {[%emt 00:13:57]} 15. Nc5 {[%clk 01:08:01]} {[%emt
00:00:42]} e5 {[%clk 00:45:07]} {[%emt 00:05:36]} 16. dxe5 {[%clk 01:00:34]}
{[%emt 00:07:57]} Nxe5 {[%clk 00:45:23]} {[%emt 00:00:14]} 17. Be2 {[%clk
00:55:38]} {[%emt 00:05:27]} b6 {[%clk 00:39:06]} {[%emt 00:06:47]} 18. Nb3
{[%clk 00:54:00]} {[%emt 00:02:07]} Nxf3+ {[%clk 00:25:22]} {[%emt 00:14:14]}
19. Bxf3 {[%clk 00:53:34]} {[%emt 00:00:56]} Ba6 {[%clk 00:25:34]} {[%emt
00:00:18]} 20. Rfd1 {[%clk 00:52:34]} {[%emt 00:01:29]} Rac8 {[%clk 00:25:04]}
{[%emt 00:01:01]} 21. Qb1 {[%clk 00:45:09]} {[%emt 00:07:54]} Bb7 {[%clk
00:21:53]} {[%emt 00:03:42]} 22. Nd4 {[%clk 00:26:47]} {[%emt 00:18:52]} Qe7
{[%clk 00:18:49]} {[%emt 00:03:32]} 23. Rxc8 {[%clk 00:23:01]} {[%emt
00:04:18]} Rxc8 {[%clk 00:19:05]} {[%emt 00:00:14]} 24. Rc1 {[%clk 00:22:51]}
{[%emt 00:00:40]} Rc5 {[%clk 00:16:18]} {[%emt 00:03:18]} 25. Rc2 {[%clk
00:21:03]} {[%emt 00:02:18]} Ne4 {[%clk 00:15:18]} {[%emt 00:01:30]} 26. Qc1
{[%clk 00:19:58]} {[%emt 00:01:35]} Kg7 {[%clk 00:11:37]} {[%emt 00:04:10]} 27.
b4 {[%clk 00:14:58]} {[%emt 00:05:30]} Rxc2 {[%clk 00:11:20]} {[%emt 00:00:47]}
28. Qxc2 {[%clk 00:15:20]} {[%emt 00:00:08]} Qd7 {[%clk 00:10:51]} {[%emt
00:00:59]} 29. Bd1 {[%clk 00:14:27]} {[%emt 00:01:23]} Ba6 {[%clk 00:09:37]}
{[%emt 00:01:44]} 30. Qc6 {[%clk 00:13:45]} {[%emt 00:01:12]} Bc8 {[%clk
00:03:24]} {[%emt 00:06:43]} 31. Bb3 {[%clk 00:08:29]} {[%emt 00:05:45]} Nf6
{[%clk 00:03:27]} {[%emt 00:00:27]} 32. Ba4 {[%clk 00:06:44]} {[%emt 00:02:15]}
Qxc6 {[%clk 00:02:46]} {[%emt 00:01:11]} 33. Bxc6 {[%clk 00:06:41]} {[%emt
00:00:33]} a6 {[%clk 00:00:42]} {[%emt 00:02:34]} 34. Ne2 {[%clk 00:06:16]}
{[%emt 00:00:55]} Kf8 {[%clk 00:00:46]} {[%emt 00:00:26]} 35. Nc3 {[%clk
00:06:36]} {[%emt 00:00:09]} Be6 {[%clk 00:01:05]} {[%emt 00:00:11]} 36. Na4
{[%clk 00:06:53]} {[%emt 00:00:14]} Bd7 {[%clk 00:01:25]} {[%emt 00:00:10]} 37.
Bxd7 {[%clk 00:06:58]} {[%emt 00:00:25]} Nxd7 {[%clk 00:01:54]} {[%emt
00:00:01]} 38. Kf1 {[%clk 00:07:06]} {[%emt 00:00:21]} Ke7 {[%clk 00:02:22]}
{[%emt 00:00:03]} 39. Ke2 {[%clk 00:07:05]} {[%emt 00:00:31]} b5 {[%clk
00:02:26]} {[%emt 00:00:26]} 40. Nb2 {[%clk 00:06:31]} {[%emt 00:01:04]} Ne5
{[%clk 00:02:32]} {[%emt 00:00:24]} 41. Nd3 {[%clk 00:06:10]} {[%emt 00:00:50]}
Nc4 {[%clk 00:01:41]} {[%emt 00:01:21]} 42. Nc5 {[%clk 00:06:11]} {[%emt
00:00:29]} a5 {[%clk 00:01:45]} {[%emt 00:00:26]} 43. bxa5 {[%clk 00:04:03]}
{[%emt 00:02:38]} Nxa5 {[%clk 00:02:07]} {[%emt 00:00:08]} 44. Kd3 {[%clk
00:04:06]} {[%emt 00:00:27]} Kd6 {[%clk 00:02:14]} {[%emt 00:00:23]} 45. Kd4
{[%clk 00:03:53]} {[%emt 00:00:43]} Nc6+ {[%clk 00:02:32]} {[%emt 00:00:12]} 46.
Kd3 {[%emt 00:00:08]} Ke5 {[%emt 00:00:04]} 47. Na4 {[%emt 00:00:02]} Kd6
{[%emt 00:00:04]} 48. Kd4 Na5 {[%emt 00:00:01]} 49. Nb6 {[%emt 00:00:02]} Nc4
{[%emt 00:00:10]} 0-1